Workbook

Sheet 6 дней
A1: СОГЛАСОВАНО | O1: УТВЕРЖДЕНО
A2: ____________________________
A3: ____________________________
A5: Меню для организации питания детей от 1 до 7 лет, посещающих дошкольные образовательные учреждения Мензелинского района РТ на 2025г.(6 дней)
A7: 1 день, 1 неделя
A9: № рецептуры | B9: Название блюда | C9: Масса | D9: Белки | E9: Жиры | F9: Углеводы | G9: Энергетическая ценность | H9: B1 | I9: B2 | J9: A | K9: D | L9: C | M9: Na | N9: K | O9: Ca | P9: Mg | Q9: P | R9: Fe | S9: I | T9: Se | U9: F
C10: г | D10: г | E10: г | F10: г | G10: ккал | H10: мг | I10: мг | J10: мкг рет.экв | K10: мкг | L10: мг | M10: мг | N10: мг | O10: мг | P10: мг | Q10: мг | R10: мг | S10: мкг | T10: мкг | U10: мкг
B11: Понедельник, 1 неделя
B12: Завтрак | C12: 1-7
A13: 54-9к-2020 | B13: Каша вязкая молочная овсяная | C13: 180 | D13: 7.7 | E13: 10.1 | F13: 30.9 | G13: 245.6 | H13: 0.19 | I13: 0.16 | J13: 36.18 | K13: 0.12 | L13: 0.47 | M13: 311.99 | N13: 246.64 | O13: 141.88 | P13: 56.55 | Q13: 210.04 | R13: 1.65 | S13: 46.13 | T13: 13.11 | U13: 56.05
A14: 54-4гн-2020 | B14: Чай с молоком и сахаром | C14: 150 | D14: 1.1 | E14: 0.8 | F14: 6.4 | G14: 37.7 | H14: 0.01 | I14: 0.05 | J14: 5.06 | K14: 0 | L14: 0.21 | M14: 14.52 | N14: 53.29 | O14: 75.98 | P14: 6 | Q14: 32.05 | R14: 0.31 | S14: 3.38 | T14: 0.66 | U14: 7.5
A15: Пром. | B15: Батон простой | C15: 20 | D15: 1.6 | E15: 0.2 | F15: 9.8 | G15: 47.5 | H15: 0.03 | I15: 0.01 | J15: 0 | K15: 0 | L15: 0 | M15: 88.6 | N15: 27.2 | O15: 4.6 | P15: 6.8 | Q15: 17.8 | R15: 0.4 | S15: 0.64 | T15: 1.2 | U15: 2.9
A16: 54-19з-2020 | B16: Масло сливочное (порциями) | C16: 10 | D16: 0.1 | E16: 7.3 | F16: 0.1 | G16: 66.1 | H16: 0 | I16: 0.01 | J16: 45 | K16: 0.13 | L16: 0 | M16: 1.5 | N16: 3 | O16: 2.4 | P16: 0 | Q16: 3 | R16: 0.02 | S16: 0 | T16: 0.1 | U16: 0.28
B17: Итого за Завтрак | C17: =SUM(C13:C16) -> 360 | D17: =SUM(D13:D16) -> 10.5 | E17: 18.4 | F17: 47.2 | G17: 396.9 | H17: 0.23 | I17: 0.23 | J17: 86.24 | K17: 0.25 | L17: 0.68 | M17: 416.61 | N17: 330.13 | O17: 224.86 | P17: 69.35 | Q17: 262.89 | R17: 2.38 | S17: 50.15 | T17: 15.07 | U17: 66.73
B18: Второй завтрак
A19: Пром. | B19: Молоко 2.5% | C19: 100 | D19: 2.9 | E19: 2.5 | F19: 4.8 | G19: 53.3 | H19: 0.029 | I19: 0.12 | J19: 13.2 | K19: 0 | L19: 0.52 | M19: 38 | N19: 121.18 | O19: 105.6 | P19: 12.18 | Q19: 78.3 | R19: 0.087 | S19: 9 | T19: 1.76 | U19: 20
B20: Итого за Второй завтрак | C20: =C19 -> 100 | D20: =D19 -> 2.9 | E20: 2.5 | F20: 4.8 | G20: 53.3 | H20: 0.029 | I20: 0.12 | J20: 13.2 | K20: 0 | L20: 0.52 | M20: 38 | N20: 121.18 | O20: 105.6 | P20: 12.18 | Q20: 78.3 | R20: 0.087 | S20: 9 | T20: 1.76 | U20: 20
B21: Обед
A22: 54-7з-2020 | B22: Салат из белокочанной капусты с растительным маслом | C22: 50 | D22: 1.27 | E22: 5.08 | F22: 5.2 | G22: 71.5 | H22: 0.01 | I22: 0.02 | J22: 61.13 | K22: 0 | L22: 11 | M22: 56 | N22: 171 | O22: 29 | P22: 12 | Q22: 22 | R22: 0.3 | S22: 8.95 | T22: 0.2 | U22: 10.55
A23: 54-7с-2020 | B23: Суп картофельный с вермишелью | C23: 200 | D23: 5.2 | E23: 2.8 | F23: 18.5 | G23: 119.6 | H23: 0.09 | I23: 0.05 | J23: 97.51 | K23: 0 | L23: 6.89 | M23: 93.01 | N23: 410.42 | O23: 13.73 | P23: 20.84 | Q23: 54.56 | R23: 0.86 | S23: 16.76 | T23: 0.23 | U23: 32.72
A24: 54-27м-2020 | B24: Рагу из курицы | C24: 110/40 | D24: 15.7 | E24: 5.3 | F24: 13.1 | G24: 163 | H24: 0.1 | I24: 0.08 | J24: 194.76 | K24: 0 | L24: 8.44 | M24: 211.04 | N24: 553.92 | O24: 24.14 | P24: 70.01 | Q24: 144.39 | R24: 1.6 | S24: 32.23 | T24: 12.78 | U24: 117.27
A25: 54-1хн-2020 | B25: Компот из смеси сухофруктов | C25: 150 | D25: 0.4 | E25: 0 | F25: 14.8 | G25: 60.7 | H25: 0 | I25: 0 | J25: 11.25 | K25: 0 | L25: 0.02 | M25: 0.04 | N25: 0.13 | O25: 81.06 | P25: 1.58 | Q25: 3.23 | R25: 0.06 | S25: 0 | T25: 0 | U25: 0
A26: Пром. | B26: Хлеб пшеничный | C26: 20 | D26: 1.5 | E26: 0.2 | F26: 9.8 | G26: 46.9 | H26: 0.02 | I26: 0.01 | J26: 0 | K26: 0 | L26: 0 | M26: 99.8 | N26: 18.6 | O26: 4 | P26: 2.8 | Q26: 13 | R26: 0.22 | S26: 0.64 | T26: 1.2 | U26: 2.9
A27: Пром. | B27: Хлеб ржаной | C27: 20 | D27: 1.3 | E27: 0.2 | F27: 6.7 | G27: 34.2 | H27: 0.04 | I27: 0.02 | J27: 0 | K27: 0 | L27: 0 | M27: 122 | N27: 49 | O27: 7 | P27: 9.4 | Q27: 31.6 | R27: 0.78 | S27: 0 | T27: 6.18 | U27: 0
B28: Итого за Обед | C28: 590 | D28: =SUM(D22:D27) -> 25.37 | E28: 13.58 | F28: 68.1 | G28: 495.9 | H28: 0.26 | I28: 0.18 | J28: 364.65 | K28: 0 | L28: 26.35 | M28: 581.89 | N28: 1203.07 | O28: 158.93 | P28: 116.63 | Q28: 268.78 | R28: 3.82 | S28: 58.58 | T28: 20.59 | U28: 163.44
B29: Полдник
A30: 54-3гн -2020 | B30: Кисель | C30: 150 | D30: 0 | E30: 0 | F30: 9.5 | G30: 37.9 | H30: 0.03 | I30: 0.03 | J30: 9.37 | K30: 0 | L30: 1.59 | M30: 0.09 | N30: 1.18 | O30: 43.75 | P30: 0.1 | Q30: 0.08 | R30: 0.02 | S30: 0 | T30: 0 | U30: 0
A31: Пром. | B31: Сушка простая | C31: 12 | D31: 1.6 | E31: 0.2 | F31: 10.3 | G31: 49.6 | H31: 0.03 | I31: 0.01 | J31: 0 | K31: 0 | L31: 0 | M31: 90.75 | N31: 27.75 | O31: 4.5 | P31: 6.9 | Q31: 18.15 | R31: 0.44 | S31: 0 | T31: 0 | U31: 0
A32: Пром. | B32: Фрукт (яблоко, банан, апельсин) | C32: 100 | D32: 0.4 | E32: 0.4 | F32: 9.8 | G32: 44.4 | H32: 0.03 | I32: 0.02 | J32: 5 | K32: 0 | L32: 10 | M32: 26 | N32: 278 | O32: 16 | P32: 9 | Q32: 11 | R32: 2.2 | S32: 2 | T32: 0.3 | U32: 8
B33: Итого за Полдник | C33: =SUM(C30:C32) -> 262 | D33: =SUM(D30:D32) -> 2 | E33: 0.6 | F33: 29.6 | G33: 131.9 | H33: 0.09 | I33: 0.06 | J33: 14.37 | K33: 0 | L33: 11.59 | M33: 116.84 | N33: 306.93 | O33: 64.25 | P33: 16 | Q33: 29.23 | R33: 2.66 | S33: 2 | T33: 0.3 | U33: 8
B34: Итого за день | C34: =C17+C20+C28+C33 -> 1312 | D34: =D17+D20+D28+D33 -> 40.77 | E34: 35.08 | F34: 149.7 | G34: 1078 | H34: 0.609 | I34: 0.59 | J34: 478.46 | K34: 0.25 | L34: 39.14 | M34: 1153.34 | N34: 1961.31 | O34: 553.64 | P34: 214.16 | Q34: 639.2 | R34: 8.947 | S34: 119.73 | T34: 37.72 | U34: 258.17
A36: 2 день, 1 неделя
A37: № рецептуры | B37: Название блюда | C37: Масса | D37: Белки | E37: Жиры | F37: Углеводы | G37: Энергетическая ценность | H37: B1 | I37: B2 | J37: A | K37: D | L37: C | M37: Na | N37: K | O37: Ca | P37: Mg | Q37: P | R37: Fe | S37: I | T37: Se | U37: F
C38: г | D38: г | E38: г | F38: г | G38: ккал | H38: мг | I38: мг | J38: мкг рет.экв | K38: мкг | L38: мг | M38: мг | N38: мг | O38: мг | P38: мг | Q38: мг | R38: мг | S38: мкг | T38: мкг | U38: мкг
B39: Вторник, 1 неделя
B40: Завтрак | C40: 1-7
A41: 54-1з-2020 | B41: Сыр твердых сортов в нарезке | C41: 10 | D41: 2.3 | E41: 3 | F41: 0 | G41: 35.8 | H41: 0 | I41: 0.03 | J41: 26 | K41: 0.1 | L41: 0.07 | M41: 81 | N41: 8.8 | O41: 88 | P41: 3.5 | Q41: 50 | R41: 0.1 | S41: 0 | T41: 1.45 | U41: 0
A42: 54-6к-2020 | B42: Каша вязкая молочная пшенная | C42: 180 | D42: 7.48 | E42: 9.11 | F42: 33.88 | G42: 247.4 | H42: 0.17 | I42: 0.13 | J42: 37.47 | K42: 0.12 | L42: 0 | M42: 305 | N42: 194 | O42: 129 | P42: 43 | Q42: 167 | R42: 1.2 | S42: 46.44 | T42: 2.8 | U42: 31.57
A43: 54-21гн-2020 | B43: Какао с молоком | C43: 150 | D43: 2.6 | E43: 1.9 | F43: 8.3 | G43: 60.8 | H43: 0.02 | I43: 0.09 | J43: 9.94 | K43: 0 | L43: 0.39 | M43: 28.76 | N43: 119.2 | O43: 107.24 | P43: 17.45 | Q43: 71.55 | R43: 0.51 | S43: 6.75 | T43: 1.32 | U43: 20.51
A44: Пром. | B44: Батон простой | C44: 20 | D44: 1.6 | E44: 0.2 | F44: 9.8 | G44: 47.5 | H44: 0.03 | I44: 0.01 | J44: 0 | K44: 0 | L44: 0 | M44: 88.6 | N44: 27.2 | O44: 4.6 | P44: 6.8 | Q44: 17.8 | R44: 0.4 | S44: 0.64 | T44: 1.2 | U44: 2.9
B45: Итого за Завтрак | C45: =SUM(C41:C44) -> 360 | D45: =SUM(D41:D44) -> 13.98 | E45: 14.21 | F45: 51.98 | G45: 391.5 | H45: 0.22 | I45: 0.26 | J45: 73.41 | K45: 0.22 | L45: 0.46 | M45: 503.36 | N45: 349.2 | O45: 328.84 | P45: 70.75 | Q45: 306.35 | R45: 2.21 | S45: 53.83 | T45: 6.77 | U45: 54.98
B46: Второй завтрак
A47: Пром. | B47: Ряженка 2.5% | C47: 100 | D47: 2.9 | E47: 2.5 | F47: 4.2 | G47: 50.9 | H47: 0.14 | I47: 0.104 | J47: 13.2 | K47: 0 | L47: 0.12 | M47: 38 | N47: 121.18 | O47: 109.12 | P47: 12.18 | Q47: 80.04 | R47: 0.087 | S47: 9 | T47: 0.88 | U47: 20
B48: Итого за Второй завтрак | C48: =C47 -> 100 | D48: =D47 -> 2.9 | E48: 2.5 | F48: 4.2 | G48: 50.9 | H48: 0.14 | I48: 0.104 | J48: 13.2 | K48: 0 | L48: 0.12 | M48: 38 | N48: 121.18 | O48: 109.12 | P48: 12.18 | Q48: 80.04 | R48: 0.087 | S48: 9 | T48: 0.88 | U48: 20
B49: Обед
A50: 54-13з-2020 | B50: Салат из свеклы отварной с растительным маслом | C50: 50 | D50: 0.67 | E50: 2.24 | F50: 3.8 | G50: 38.1 | H50: 0.01 | I50: 0.02 | J50: 0.57 | K50: 0 | L50: 2 | M50: 66 | N50: 114 | O50: 16 | P50: 9 | Q50: 18 | R50: 0.6 | S50: 10 | T50: 0.3 | U50: 9.5
A51: 54-8с-2020 | B51: Суп гороховый | C51: 200 | D51: 6.7 | E51: 4.6 | F51: 16.3 | G51: 133.1 | H51: 0.14 | I51: 0.05 | J51: 97.19 | K51: 0 | L51: 4.77 | M51: 95.82 | N51: 382.43 | O51: 26.94 | P51: 29 | Q51: 80.47 | R51: 1.48 | S51: 15.96 | T51: 2.01 | U51: 28.88
A52: 54-3м-2020 | B52: Голубцы ленивые | C52: 150 | D52: 12.7 | E52: 11.5 | F52: 9.6 | G52: 192.5 | H52: 0.05 | I52: 0.11 | J52: 13.77 | K52: 0.06 | L52: 16.56 | M52: 172.39 | N52: 406.9 | O52: 62.02 | P52: 28.46 | Q52: 138.21 | R52: 2.03 | S52: 25.4 | T52: 1.31 | U52: 53.47
A53: 54-33хн-2020 | B53: Напиток апельсиновый | C53: 150 | D53: 0.1 | E53: 0 | F53: 6 | G53: 24.8 | H53: 0 | I53: 0 | J53: 0.79 | K53: 0 | L53: 3.96 | M53: 1.67 | N53: 27.11 | O53: 55.85 | P53: 1.87 | Q53: 3.3 | R53: 0.06 | S53: 0.33 | T53: 0.07 | U53: 2.81
A54: Пром. | B54: Хлеб пшеничный | C54: 20 | D54: 1.5 | E54: 0.2 | F54: 9.8 | G54: 46.9 | H54: 0.02 | I54: 0.01 | J54: 0 | K54: 0 | L54: 0 | M54: 99.8 | N54: 18.6 | O54: 4 | P54: 2.8 | Q54: 13 | R54: 0.22 | S54: 0.64 | T54: 1.2 | U54: 2.9
A55: Пром. | B55: Хлеб ржаной | C55: 20 | D55: 1.3 | E55: 0.2 | F55: 6.7 | G55: 34.2 | H55: 0.04 | I55: 0.02 | J55: 0 | K55: 0 | L55: 0 | M55: 122 | N55: 49 | O55: 7 | P55: 9.4 | Q55: 31.6 | R55: 0.78 | S55: 0 | T55: 6.18 | U55: 0
B56: Итого за Обед | C56: =SUM(C50:C55) -> 590 | D56: =SUM(D50:D55) -> 22.97 | E56: 18.74 | F56: 52.2 | G56: 469.6 | H56: 0.26 | I56: 0.21 | J56: 112.32 | K56: 0.06 | L56: 27.29 | M56: 557.68 | N56: 998.04 | O56: 171.81 | P56: 80.53 | Q56: 284.58 | R56: 5.17 | S56: 52.33 | T56: 11.07 | U56: 97.56
B57: Полдник
A58: 54-10в-2020 | B58: Булочка ванильная | C58: 50 | D58: 3.9 | E58: 3.4 | F58: 25.4 | G58: 147.4 | H58: 0.05 | I58: 0.03 | J58: 15.93 | K58: 0.12 | L58: 0 | M58: 200.57 | N58: 42.12 | O58: 14.69 | P58: 5.43 | Q58: 34.11 | R58: 0.47 | S58: 27.8 | T58: 2.63 | U58: 9.19
A59: Пром. | B59: Сок яблочный | C59: 150 | D59: 0.8 | E59: 0.2 | F59: 15.2 | G59: 65 | H59: 0.02 | I59: 0.02 | J59: 0 | K59: 0 | L59: 3 | M59: 9 | N59: 180 | O59: 10.5 | P59: 6 | Q59: 10.5 | R59: 2.1 | S59: 0 | T59: 0 | U59: 0
B60: Итого за Полдник | C60: =SUM(C58:C59) -> 200 | D60: 4.7 | E60: 3.6 | F60: 40.6 | G60: 212.4 | H60: 0.07 | I60: 0.05 | J60: 15.93 | K60: 0.12 | L60: 3 | M60: 209.57 | N60: 222.12 | O60: 25.19 | P60: 11.43 | Q60: 44.61 | R60: 2.57 | S60: 27.8 | T60: 2.63 | U60: 9.19
B61: Итого за день | C61: =C45+C48+C56+C60 -> 1250 | D61: 44.55 | E61: 39.05 | F61: 148.98 | G61: 1124.4 | H61: 0.69 | I61: 0.624 | J61: 214.86 | K61: 0.4 | L61: 30.87 | M61: 1308.61 | N61: 1690.54 | O61: 634.96 | P61: 174.89 | Q61: 715.58 | R61: 10.037 | S61: 142.96 | T61: 21.35 | U61: 181.73
A63: 3 день, 1 неделя
A64: № рецептуры | B64: Название блюда | C64: Масса | D64: Белки | E64: Жиры | F64: Углеводы | G64: Энергетическая ценность | H64: B1 | I64: B2 | J64: A | K64: D | L64: C | M64: Na | N64: K | O64: Ca | P64: Mg | Q64: P | R64: Fe | S64: I | T64: Se | U64: F
C65: г | D65: г | E65: г | F65: г | G65: ккал | H65: мг | I65: мг | J65: мкг рет.экв | K65: мкг | L65: мг | M65: мг | N65: мг | O65: мг | P65: мг | Q65: мг | R65: мг | S65: мкг | T65: мкг | U65: мкг
B66: Среда, 1 неделя
B67: Завтрак | C67: 1-7
A68: 54-1о-2020 | B68: Омлет натуральный | C68: 150 | D68: 12.68 | E68: 17.95 | F68: 3.25 | G68: 225.2 | H68: 0.07 | I68: 0.4 | J68: 182.66 | K68: 2.18 | L68: 0 | M68: 264 | N68: 180 | O68: 110 | P68: 17 | Q68: 202 | R68: 2.1 | S68: 43.65 | T68: 26 | U68: 62.62
A69: 54-3гн-2020 | B69: Чай с лимоном и сахаром | C69: 155 | D69: 0.1 | E69: 0 | F69: 4.9 | G69: 20.4 | H69: 0 | I69: 0 | J69: 0.18 | K69: 0 | L69: 0.86 | M69: 0.71 | N69: 14.95 | O69: 48.62 | P69: 1.98 | Q69: 3.7 | R69: 0.31 | S69: 0.01 | T69: 0.02 | U69: 0.53
A70: Пром. | B70: Батон простой | C70: 20 | D70: 1.6 | E70: 0.2 | F70: 9.8 | G70: 47.5 | H70: 0.03 | I70: 0.01 | J70: 0 | K70: 0 | L70: 0 | M70: 88.6 | N70: 27.2 | O70: 4.6 | P70: 6.8 | Q70: 17.8 | R70: 0.4 | S70: 0.64 | T70: 1.2 | U70: 2.9
B71: Итого за Завтрак | C71: =SUM(C68:C70) -> 325 | D71: 14.38 | E71: 18.15 | F71: 17.95 | G71: 293.1 | H71: 0.1 | I71: 0.41 | J71: 182.84 | K71: 2.18 | L71: 0.86 | M71: 353.31 | N71: 222.15 | O71: 163.22 | P71: 25.78 | Q71: 223.5 | R71: 2.81 | S71: 44.3 | T71: 27.22 | U71: 66.05
B72: Второй завтрак
A73: Пром. | B73: Молоко 2.5% | C73: 100 | D73: 2.9 | E73: 2.5 | F73: 4.8 | G73: 53.3 | H73: 0.029 | I73: 0.12 | J73: 13.2 | K73: 0 | L73: 0.52 | M73: 38 | N73: 121.18 | O73: 105.6 | P73: 12.18 | Q73: 78.3 | R73: 0.087 | S73: 9 | T73: 1.76 | U73: 20
B74: Итого за Второй завтрак | C74: =C73 -> 100 | D74: =D73 -> 2.9 | E74: 2.5 | F74: 4.8 | G74: 53.3 | H74: 0.029 | I74: 0.12 | J74: 13.2 | K74: 0 | L74: 0.52 | M74: 38 | N74: 121.18 | O74: 105.6 | P74: 12.18 | Q74: 78.3 | R74: 0.087 | S74: 9 | T74: 1.76 | U74: 20
B75: Обед
A76: 54-16з-2020 | B76: Винегрет с растительным маслом | C76: 50 | D76: 0.59 | E76: 4.47 | F76: 3.33 | G76: 56 | H76: 0.01 | I76: 0.01 | J76: 60.74 | K76: 0 | L76: 1 | M76: 168 | N76: 107 | O76: 9 | P76: 8 | Q76: 18 | R76: 0.4 | S76: 6.56 | T76: 0 | U76: 9.88
A77: 54-1с-2020 | B77: Щи из свежей капусты со сметаной | C77: 200 | D77: 4.7 | E77: 5.6 | F77: 5.7 | G77: 92.2 | H77: 0.02 | I77: 0.03 | J77: 104.95 | K77: 0 | L77: 10.76 | M77: 98.52 | N77: 184 | O77: 37.48 | P77: 13.13 | Q77: 30.97 | R77: 0.48 | S77: 15.25 | T77: 0.34 | U77: 14.76
A78: 54-4г-2020 | B78: Каша гречневая рассыпчатая | C78: 130 | D78: 7.1 | E78: 5.5 | F78: 31.1 | G78: 202.5 | H78: 0.19 | I78: 0.1 | J78: 16.63 | K78: 0.08 | L78: 0 | M78: 129.52 | N78: 190.11 | O78: 40.4 | P78: 104.13 | Q78: 156.86 | R78: 3.51 | S78: 19.31 | T78: 3.05 | U78: 13.92
A79: ном.рец №174 | B79: Тефтели мясные из говядины полуфабрикат | C79: 75 | D79: 8.98 | E79: 9.49 | F79: 7.31 | G79: 150.5 | H79: 0 | I79: 0 | J79: 0 | K79: 0 | L79: 0.79 | M79: 0 | N79: 0 | O79: 0 | P79: 0 | Q79: 0 | R79: 0 | S79: 0 | T79: 0 | U79: 0
A80: 54-3соус-2020 | B80: Соус красный основной | C80: 30 | D80: 1 | E80: 0.7 | F80: 2.7 | G80: 21.2 | H80: 0.01 | I80: 0 | J80: 38.45 | K80: 0.01 | L80: 0.81 | M80: 3.7 | N80: 42.58 | O80: 2.77 | P80: 3.67 | Q80: 7.16 | R80: 0.15 | S80: 0.54 | T80: 0.13 | U80: 2.71
A81: №438 | B81: Напиток яблочный | C81: 150 | D81: 0.1 | E81: 0.1 | F81: 8.5 | G81: 35.6 | H81: 0 | I81: 0 | J81: 0 | K81: 0 | L81: 0.8 | M81: 0 | N81: 0 | O81: 8.9 | P81: 2.8 | Q81: 1.9 | R81: 0.4 | S81: 0 | T81: 0 | U81: 0
A82: Пром. | B82: Хлеб ржаной | C82: 20 | D82: 1.3 | E82: 0.2 | F82: 6.7 | G82: 34.2 | H82: 0.04 | I82: 0.02 | J82: 0 | K82: 0 | L82: 0 | M82: 122 | N82: 49 | O82: 7 | P82: 9.4 | Q82: 31.6 | R82: 0.78 | S82: 0 | T82: 6.18 | U82: 0
A83: Пром. | B83: Хлеб пшеничный | C83: 20 | D83: 1.5 | E83: 0.2 | F83: 9.8 | G83: 46.9 | H83: 0.02 | I83: 0.01 | J83: 0 | K83: 0 | L83: 0 | M83: 99.8 | N83: 18.6 | O83: 4 | P83: 2.8 | Q83: 13 | R83: 0.22 | S83: 0.64 | T83: 1.2 | U83: 2.9
B84: Итого за Обед | C84: =SUM(C76:C83) -> 675 | D84: =SUM(D76:D83) -> 25.27 | E84: 26.26 | F84: 75.14 | G84: 639.1 | H84: 0.29 | I84: 0.17 | J84: 220.77 | K84: 0.09 | L84: 14.16 | M84: 621.54 | N84: 591.29 | O84: 109.55 | P84: 143.93 | Q84: 259.49 | R84: 5.94 | S84: 42.3 | T84: 10.9 | U84: 44.17
B85: Полдник
A86: 54-4гн-2020 | B86: Чай с молоком и сахаром | C86: 150 | D86: 1.1 | E86: 0.8 | F86: 6.4 | G86: 37.7 | H86: 0.01 | I86: 0.05 | J86: 5.06 | K86: 0 | L86: 0.21 | M86: 14.52 | N86: 53.29 | O86: 75.98 | P86: 6 | Q86: 32.05 | R86: 0.31 | S86: 3.38 | T86: 0.66 | U86: 7.5
A87: № Т/К 401 | B87: Блин без начинки П/Ф (45гр) 1 шт | C87: 45 | D87: 1.58 | E87: 1.58 | F87: 10.35 | G87: 63 | H87: 0 | I87: 0 | J87: 0 | K87: 0 | L87: 0 | M87: 0 | N87: 0 | O87: 7.7 | P87: 3.4 | Q87: 20.2 | R87: 0.3 | S87: 0 | T87: 0 | U87: 0
B88: Итого за Полдник | C88: =SUM(C86:C87) -> 195 | D88: 2.68 | E88: 2.38 | F88: 16.75 | G88: 100.7 | H88: 0.01 | I88: 0.05 | J88: 5.06 | K88: 0 | L88: 0.21 | M88: 14.52 | N88: 53.29 | O88: 83.68 | P88: 9.4 | Q88: 52.25 | R88: 0.61 | S88: 3.38 | T88: 0.66 | U88: 7.5
B89: Итого за день | C89: =C71+C74+C84+C88 -> 1295 | D89: 45.23 | E89: 49.29 | F89: 114.64 | G89: 1086.2 | H89: 0.429 | I89: 0.75 | J89: 421.87 | K89: 2.27 | L89: 15.75 | M89: 1027.37 | N89: 987.91 | O89: 462.05 | P89: 191.29 | Q89: 613.54 | R89: 9.447 | S89: 98.98 | T89: 40.54 | U89: 137.72
A91: 4 день, 1 неделя
A92: № рецептуры | B92: Название блюда | C92: Масса | D92: Белки | E92: Жиры | F92: Углеводы | G92: Энергетическая ценность | H92: B1 | I92: B2 | J92: A | K92: D | L92: C | M92: Na | N92: K | O92: Ca | P92: Mg | Q92: P | R92: Fe | S92: I | T92: Se | U92: F
C93: г | D93: г | E93: г | F93: г | G93: ккал | H93: мг | I93: мг | J93: мкг рет.экв | K93: мкг | L93: мг | M93: мг | N93: мг | O93: мг | P93: мг | Q93: мг | R93: мг | S93: мкг | T93: мкг | U93: мкг
B94: Четверг, 1 неделя
B95: Завтрак | C95: 1-7
A96: 54-1з-2020 | B96: Сыр твердых сортов в нарезке | C96: 10 | D96: 2.3 | E96: 3 | F96: 0 | G96: 35.8 | H96: 0 | I96: 0.03 | J96: 26 | K96: 0.1 | L96: 0.07 | M96: 81 | N96: 8.8 | O96: 88 | P96: 3.5 | Q96: 50 | R96: 0.1 | S96: 0 | T96: 1.45 | U96: 0
A97: 54-7к-2020 | B97: Каша манная | C97: 180 | D97: 7.4 | E97: 4.5 | F97: 33.4 | G97: 203.3 | H97: 0.07 | I97: 0.11 | J97: 16.2 | K97: 0 | L97: 0.29 | M97: 145.71 | N97: 200.54 | O97: 182.66 | P97: 21.82 | Q97: 145.96 | R97: 0.46 | S97: 16.2 | T97: 1.58 | U97: 28.8
A98: 54-2гн-2020 | B98: Чай с сахаром | C98: 150 | D98: 0.1 | E98: 0 | F98: 4.8 | G98: 19.6 | H98: 0 | I98: 0 | J98: 0.11 | K98: 0 | L98: 0.02 | M98: 0.27 | N98: 7.85 | O98: 47.93 | P98: 1.44 | Q98: 2.69 | R98: 0.28 | S98: 0 | T98: 0 | U98: 0
A99: Пром. | B99: Батон простой | C99: 20 | D99: 1.6 | E99: 0.2 | F99: 9.8 | G99: 47.5 | H99: 0.03 | I99: 0.01 | J99: 0 | K99: 0 | L99: 0 | M99: 88.6 | N99: 27.2 | O99: 4.6 | P99: 6.8 | Q99: 17.8 | R99: 0.4 | S99: 0.64 | T99: 1.2 | U99: 2.9
B100: Итого за Завтрак | C100: =SUM(C96:C99) -> 360 | D100: =SUM(D96:D99) -> 11.4 | E100: 7.7 | F100: 48 | G100: 306.2 | H100: 0.1 | I100: 0.15 | J100: 42.31 | K100: 0.1 | L100: 0.38 | M100: 315.58 | N100: 244.39 | O100: 323.19 | P100: 33.56 | Q100: 216.45 | R100: 1.24 | S100: 16.84 | T100: 4.23 | U100: 31.7
B101: Второй завтрак
A102: Пром. | B102: Сок яблочный | C102: 100 | D102: 0.5 | E102: 0.1 | F102: 10.1 | G102: 43.3 | H102: 0.007 | I102: 0.008 | J102: 0 | K102: 0 | L102: 0.8 | M102: 4.56 | N102: 99.6 | O102: 6.16 | P102: 3.48 | Q102: 6.09 | R102: 1.218 | S102: 0 | T102: 0 | U102: 0
B103: Итого за Второй завтрак | C103: =C102 -> 100 | D103: =D102 -> 0.5 | E103: 0.1 | F103: 10.1 | G103: 43.3 | H103: 0.007 | I103: 0.008 | J103: 0 | K103: 0 | L103: 0.8 | M103: 4.56 | N103: 99.6 | O103: 6.16 | P103: 3.48 | Q103: 6.09 | R103: 1.218 | S103: 0 | T103: 0 | U103: 0
B104: Обед
A105: 54-9з-2020 | B105: Салат из белокочанной капусты с морковью и яблоками и растительным маслом | C105: 50 | D105: 0.68 | E105: 5.08 | F105: 3.01 | G105: 60.5 | H105: 0.01 | I105: 0.02 | J105: 120.81 | K105: 0 | L105: 5 | M105: 56 | N105: 111 | O105: 17 | P105: 8 | Q105: 14 | R105: 0.4 | S105: 8.23 | T105: 0.1 | U105: 9.15
A106: 54-7с-2020 | B106: Суп картофельный с вермишелью | C106: 200 | D106: 5.2 | E106: 2.8 | F106: 18.5 | G106: 119.6 | H106: 0.09 | I106: 0.05 | J106: 97.51 | K106: 0 | L106: 6.89 | M106: 93.01 | N106: 410.42 | O106: 13.73 | P106: 20.84 | Q106: 54.56 | R106: 0.86 | S106: 16.76 | T106: 0.23 | U106: 32.72
A107: 54-21г-2020 | B107: Горошница | C107: 130 | D107: 12.5 | E107: 1.1 | F107: 29.3 | G107: 177.5 | H107: 0.38 | I107: 0.08 | J107: 0.78 | K107: 0 | L107: 0 | M107: 143.79 | N107: 471.02 | O107: 108.29 | P107: 60.59 | Q107: 186.33 | R107: 3.86 | S107: 20.65 | T107: 7.49 | U107: 19.5
A108: №272 | B108: Биточек рубленный из говядины с соусом | C108: 50/30 | D108: 9.3 | E108: 7.1 | F108: 11.8 | G108: 148.6 | H108: 0 | I108: 0 | J108: 0.1 | K108: 0 | L108: 1.4 | M108: 0 | N108: 0 | O108: 14.7 | P108: 18.9 | Q108: 97 | R108: 1.7 | S108: 0 | T108: 0 | U108: 0
A109: 54-3гн -2020 | B109: Кисель | C109: 150 | D109: 0 | E109: 0 | F109: 9.5 | G109: 37.9 | H109: 0.03 | I109: 0.03 | J109: 9.37 | K109: 0 | L109: 1.59 | M109: 0.09 | N109: 1.18 | O109: 43.75 | P109: 0.1 | Q109: 0.08 | R109: 0.02 | S109: 0 | T109: 0 | U109: 0
A110: Пром. | B110: Хлеб пшеничный | C110: 20 | D110: 1.5 | E110: 0.2 | F110: 9.8 | G110: 46.9 | H110: 0.02 | I110: 0.01 | J110: 0 | K110: 0 | L110: 0 | M110: 99.8 | N110: 18.6 | O110: 4 | P110: 2.8 | Q110: 13 | R110: 0.22 | S110: 0.64 | T110: 1.2 | U110: 2.9
A111: Пром. | B111: Хлеб ржаной | C111: 20 | D111: 1.3 | E111: 0.2 | F111: 6.7 | G111: 34.2 | H111: 0.04 | I111: 0.02 | J111: 0 | K111: 0 | L111: 0 | M111: 122 | N111: 49 | O111: 7 | P111: 9.4 | Q111: 31.6 | R111: 0.78 | S111: 0 | T111: 6.18 | U111: 0
B112: Итого за Обед | C112: 650 | D112: =SUM(D105:D111) -> 30.48 | E112: 16.48 | F112: 88.61 | G112: 625.2 | H112: 0.57 | I112: 0.21 | J112: 228.57 | K112: 0 | L112: 14.88 | M112: 514.69 | N112: 1061.22 | O112: 208.47 | P112: 120.63 | Q112: 396.57 | R112: 7.84 | S112: 46.28 | T112: 15.2 | U112: 64.27
B113: Полдник
A114: 54-21гн-2020 | B114: Какао с молоком | C114: 150 | D114: 2.6 | E114: 1.9 | F114: 8.3 | G114: 60.8 | H114: 0.02 | I114: 0.09 | J114: 9.94 | K114: 0 | L114: 0.39 | M114: 28.76 | N114: 119.2 | O114: 107.24 | P114: 17.45 | Q114: 71.55 | R114: 0.51 | S114: 6.75 | T114: 1.32 | U114: 20.51
A115: Пром. | B115: Сушка простая | C115: 12 | D115: 1.6 | E115: 0.2 | F115: 10.3 | G115: 49.6 | H115: 0.03 | I115: 0.01 | J115: 0 | K115: 0 | L115: 0 | M115: 90.75 | N115: 27.75 | O115: 4.5 | P115: 6.9 | Q115: 18.15 | R115: 0.44 | S115: 0 | T115: 0 | U115: 0
A116: Пром. | B116: Фрукт (яблоко, банан, апельсин) | C116: 160 | D116: 0.4 | E116: 0.4 | F116: 9.8 | G116: 44.4 | H116: 0.03 | I116: 0.02 | J116: 5 | K116: 0 | L116: 10 | M116: 26 | N116: 278 | O116: 16 | P116: 9 | Q116: 11 | R116: 2.2 | S116: 2 | T116: 0.3 | U116: 8
B117: Итого за Полдник | C117: =SUM(C114:C116) -> 322 | D117: =SUM(D114:D116) -> 4.6 | E117: =SUM(E114:E116) -> 2.5 | F117: 28.4 | G117: 154.8 | H117: 0.08 | I117: 0.12 | J117: 14.94 | K117: 0 | L117: 10.39 | M117: 145.51 | N117: 424.95 | O117: 127.74 | P117: 33.35 | Q117: 100.7 | R117: 3.15 | S117: 8.75 | T117: 1.62 | U117: 28.51
B118: Итого за день | C118: =C100+C103+C112+C117 -> 1432 | D118: 46.98 | E118: 26.78 | F118: 175.11 | G118: 1129.5 | H118: 0.757 | I118: 0.488 | J118: 285.82 | K118: 0.1 | L118: 26.45 | M118: 980.34 | N118: 1830.16 | O118: 665.56 | P118: 191.02 | Q118: 719.81 | R118: 13.448 | S118: 71.87 | T118: 21.05 | U118: 124.48
A120: 5 день, 1 неделя
A121: № рецептуры | B121: Название блюда | C121: Масса | D121: Белки | E121: Жиры | F121: Углеводы | G121: Энергетическая ценность | H121: B1 | I121: B2 | J121: A | K121: D | L121: C | M121: Na | N121: K | O121: Ca | P121: Mg | Q121: P | R121: Fe | S121: I | T121: Se | U121: F
C122: г | D122: г | E122: г | F122: г | G122: ккал | H122: мг | I122: мг | J122: мкг рет.экв | K122: мкг | L122: мг | M122: мг | N122: мг | O122: мг | P122: мг | Q122: мг | R122: мг | S122: мкг | T122: мкг | U122: мкг
B123: Пятница, 1 неделя
B124: Завтрак | C124: 1-7
A125: 54-19к-2020 | B125: Суп молочный с макаронными изделиями | C125: 180 | D125: 4.9 | E125: 4.1 | F125: 16.1 | G125: 120.8 | H125: 0.05 | I125: 0.16 | J125: 21.49 | K125: 0.02 | L125: 0.66 | M125: 101.38 | N125: 167.89 | O125: 153.08 | P125: 17.39 | Q125: 110.14 | R125: 0.32 | S125: 18.76 | T125: 2.23 | U125: 28.56
A126: 54-3гн-2020 | B126: Чай с лимоном и сахаром | C126: 155 | D126: 0.1 | E126: 0 | F126: 4.9 | G126: 20.4 | H126: 0 | I126: 0 | J126: 0.18 | K126: 0 | L126: 0.86 | M126: 0.71 | N126: 14.95 | O126: 48.62 | P126: 1.98 | Q126: 3.7 | R126: 0.31 | S126: 0.01 | T126: 0.02 | U126: 0.53
A127: Пром. | B127: Батон простой | C127: 20 | D127: 1.6 | E127: 0.2 | F127: 9.8 | G127: 47.5 | H127: 0.03 | I127: 0.01 | J127: 0 | K127: 0 | L127: 0 | M127: 88.6 | N127: 27.2 | O127: 4.6 | P127: 6.8 | Q127: 17.8 | R127: 0.4 | S127: 0.64 | T127: 1.2 | U127: 2.9
B128: Итого за Завтрак | C128: =SUM(C125:C127) -> 355 | D128: 6.6 | E128: 4.3 | F128: 30.8 | G128: 188.7 | H128: 0.08 | I128: 0.17 | J128: 21.67 | K128: 0.02 | L128: 1.52 | M128: 190.69 | N128: 210.04 | O128: 206.3 | P128: 26.17 | Q128: 131.64 | R128: 1.03 | S128: 19.41 | T128: 3.45 | U128: 31.99
B129: Второй завтрак
A130: Пром. | B130: Молоко 2.5% | C130: 100 | D130: 2.9 | E130: 2.5 | F130: 4.8 | G130: 53.3 | H130: 0.029 | I130: 0.12 | J130: 13.2 | K130: 0 | L130: 0.52 | M130: 38 | N130: 121.18 | O130: 105.6 | P130: 12.18 | Q130: 78.3 | R130: 0.087 | S130: 9 | T130: 1.76 | U130: 20
B131: Итого за Второй завтрак | C131: =C130 -> 100 | D131: =D130 -> 2.9 | E131: 2.5 | F131: 4.8 | G131: 53.3 | H131: 0.029 | I131: 0.12 | J131: 13.2 | K131: 0 | L131: 0.52 | M131: 38 | N131: 121.18 | O131: 105.6 | P131: 12.18 | Q131: 78.3 | R131: 0.087 | S131: 9 | T131: 1.76 | U131: 20
B132: Обед
A133: 54-16з-2020 | B133: Винегрет с растительным маслом | C133: 50 | D133: 0.59 | E133: 4.47 | F133: 3.33 | G133: 56 | H133: 0.01 | I133: 0.01 | J133: 60.74 | K133: 0 | L133: 1 | M133: 168 | N133: 107 | O133: 9 | P133: 8 | Q133: 18 | R133: 0.4 | S133: 6.56 | T133: 0 | U133: 9.88
A134: 54-2с-2020 | B134: Борщ с капустой и картофелем со сметаной | C134: 200 | D134: 4.7 | E134: 5.7 | F134: 10.1 | G134: 110.4 | H134: 0.03 | I134: 0.04 | J134: 134.66 | K134: 0 | L134: 6.77 | M134: 107.03 | N134: 264.63 | O134: 33.68 | P134: 19.22 | Q134: 42.64 | R134: 0.87 | S134: 17.16 | T134: 0.4 | U134: 22.62
A135: 54-11г-2020 | B135: Картофельное пюре | C135: 130 | D135: 2.7 | E135: 4.6 | F135: 17.2 | G135: 120.8 | H135: 0.1 | I135: 0.09 | J135: 20.62 | K135: 0.08 | L135: 8.84 | M135: 140.21 | N135: 541.52 | O135: 34.22 | P135: 24.47 | Q135: 73.21 | R135: 0.89 | S135: 24.67 | T135: 0.68 | U135: 37.09
A136: 54-7р-2020 | B136: Рыба, припущенная в молоке (минтай) | C136: 75 | D136: 9.8 | E136: 5.8 | F136: 2.1 | G136: 100 | H136: 0.06 | I136: 0.08 | J136: 6.77 | K136: 0.12 | L136: 0.84 | M136: 82.98 | N136: 260.04 | O136: 51.16 | P136: 33.5 | Q136: 151.85 | R136: 0.55 | S136: 100.11 | T136: 8.88 | U136: 429.45
A137: №438 | B137: Напиток яблочный | C137: 150 | D137: 0.1 | E137: 0.1 | F137: 8.5 | G137: 35.6 | H137: 0 | I137: 0 | J137: 0 | K137: 0 | L137: 0.8 | M137: 0 | N137: 0 | O137: 8.9 | P137: 2.8 | Q137: 1.9 | R137: 0.4 | S137: 0 | T137: 0 | U137: 0
A138: Пром. | B138: Хлеб ржаной | C138: 20 | D138: 1.3 | E138: 0.2 | F138: 6.7 | G138: 34.2 | H138: 0.04 | I138: 0.02 | J138: 0 | K138: 0 | L138: 0 | M138: 122 | N138: 49 | O138: 7 | P138: 9.4 | Q138: 31.6 | R138: 0.78 | S138: 0 | T138: 6.18 | U138: 0
A139: Пром. | B139: Хлеб пшеничный | C139: 20 | D139: 1.5 | E139: 0.2 | F139: 9.8 | G139: 46.9 | H139: 0.02 | I139: 0.01 | J139: 0 | K139: 0 | L139: 0 | M139: 99.8 | N139: 18.6 | O139: 4 | P139: 2.8 | Q139: 13 | R139: 0.22 | S139: 0.64 | T139: 1.2 | U139: 2.9
B140: Итого за Обед | C140: =SUM(C133:C139) -> 645 | D140: =SUM(D133:D139) -> 20.69 | E140: 21.07 | F140: 57.73 | G140: 503.9 | H140: 0.26 | I140: 0.25 | J140: 222.79 | K140: 0.2 | L140: 18.25 | M140: 720.02 | N140: 1240.79 | O140: 147.96 | P140: 100.19 | Q140: 332.2 | R140: 4.11 | S140: 149.14 | T140: 17.34 | U140: 501.94
B141: Полдник
A142: 54-23гн-2020 | B142: Кофейный напиток с молоком | C142: 150 | D142: 2.4 | E142: 1.8 | F142: 8.2 | G142: 58.9 | H142: 0.02 | I142: 0.09 | J142: 9.93 | K142: 0 | L142: 0.39 | M142: 28.69 | N142: 109.8 | O142: 108.7 | P142: 14.68 | Q142: 67.27 | R142: 0.37 | S142: 6.75 | T142: 1.32 | U142: 15
A143: Пром. | B143: Пряник | C143: 30 | D143: 1.8 | E143: 1.4 | F143: 22.5 | G143: 109.8 | H143: 0.02 | I143: 0.01 | J143: 0 | K143: 0 | L143: 0 | M143: 0.6 | N143: 21.3 | O143: 3.3 | P143: 2.7 | Q143: 15 | R143: 0.24 | S143: 0 | T143: 0 | U143: 0
B144: Итого за Полдник | C144: =SUM(C142:C143) -> 180 | D144: 4.2 | E144: 3.2 | F144: 30.7 | G144: 168.7 | H144: 0.04 | I144: 0.1 | J144: 9.93 | K144: 0 | L144: 0.39 | M144: 29.29 | N144: 131.1 | O144: 112 | P144: 17.38 | Q144: 82.27 | R144: 0.61 | S144: 6.75 | T144: 1.32 | U144: 15
B145: Итого за день | C145: =C128+C131+C140+C144 -> 1280 | D145: 34.39 | E145: 31.07 | F145: 124.03 | G145: 914.6 | H145: 0.409 | I145: 0.64 | J145: 267.59 | K145: 0.22 | L145: 20.68 | M145: 978 | N145: 1703.11 | O145: 571.86 | P145: 155.92 | Q145: 624.41 | R145: 5.837 | S145: 184.3 | T145: 23.87 | U145: 568.93
A147: 6 день, 1 неделя
A148: № рецептуры | B148: Название блюда | C148: Масса | D148: Белки | E148: Жиры | F148: Углеводы | G148: Энергетическая ценность | H148: B1 | I148: B2 | J148: A | K148: D | L148: C | M148: Na | N148: K | O148: Ca | P148: Mg | Q148: P | R148: Fe | S148: I | T148: Se | U148: F
B149: Суббота, 1 неделя | C149: г | D149: г | E149: г | F149: г | G149: ккал | H149: мг | I149: мг | J149: мкг рет.экв | K149: мкг | L149: мг | M149: мг | N149: мг | O149: мг | P149: мг | Q149: мг | R149: мг | S149: мкг | T149: мкг | U149: мкг
B150: Завтрак | C150: 1-7
A151: 54-9к-2020 | B151: Каша вязкая молочная овсяная | C151: 180 | D151: 7.7 | E151: 10.1 | F151: 30.9 | G151: 245.6 | H151: 0.19 | I151: 0.16 | J151: 36.18 | K151: 0.12 | L151: 0.47 | M151: 311.99 | N151: 246.64 | O151: 141.88 | P151: 56.55 | Q151: 210.04 | R151: 1.65 | S151: 46.13 | T151: 13.11 | U151: 56.05
A152: 54-2гн-2020 | B152: Чай - заварка | C152: 150 | D152: 0.1 | E152: 0 | F152: 4.8 | G152: 19.6 | H152: 0 | I152: 0 | J152: 0.11 | K152: 0 | L152: 0.02 | M152: 0.27 | N152: 7.85 | O152: 47.93 | P152: 1.44 | Q152: 2.69 | R152: 0.28 | S152: 0 | T152: 0 | U152: 0
A153: Пром. | B153: Батон простой | C153: 20 | D153: 1.6 | E153: 0.2 | F153: 9.8 | G153: 47.5 | H153: 0.03 | I153: 0.01 | J153: 0 | K153: 0 | L153: 0 | M153: 88.6 | N153: 27.2 | O153: 4.6 | P153: 6.8 | Q153: 17.8 | R153: 0.4 | S153: 0.64 | T153: 1.2 | U153: 2.9
B154: Итого за Завтрак | C154: =SUM(C151:C153) -> 350 | D154: 9.4 | E154: 10.3 | F154: 45.5 | G154: 312.7 | H154: 0.22 | I154: 0.17 | J154: 36.29 | K154: 0.12 | L154: 0.49 | M154: 400.86 | N154: 281.69 | O154: 194.41 | P154: 64.79 | Q154: 230.53 | R154: 2.33 | S154: 46.77 | T154: 14.31 | U154: 58.95
B155: Второй завтрак
A156: Пром. | B156: Сок яблочный | C156: 100 | D156: 0.5 | E156: 0.1 | F156: 10.1 | G156: 43.3 | H156: 0.007 | I156: 0.008 | J156: 0 | K156: 0 | L156: 0.8 | M156: 4.56 | N156: 99.6 | O156: 6.16 | P156: 3.48 | Q156: 6.09 | R156: 1.218 | S156: 0 | T156: 0 | U156: 0
B157: Итого за Второй завтрак | C157: =C156 -> 100 | D157: =D156 -> 0.5 | E157: 0.1 | F157: 10.1 | G157: 43.3 | H157: 0.007 | I157: 0.008 | J157: 0 | K157: 0 | L157: 0.8 | M157: 4.56 | N157: 99.6 | O157: 6.16 | P157: 3.48 | Q157: 6.09 | R157: 1.218 | S157: 0 | T157: 0 | U157: 0
B158: Обед
A159: 54-11з-2020 | B159: Салат из моркови с яблоками и растительным маслом | C159: 50 | D159: 0.46 | E159: 5.09 | F159: 3.57 | G159: 62 | H159: 0.01 | I159: 0.02 | J159: 366.45 | K159: 0 | L159: 2 | M159: 57 | N159: 86 | O159: 10 | P159: 11 | Q159: 16 | R159: 0.5 | S159: 8.5 | T159: 0 | U159: 17.98
A160: 54-1с-2020 | B160: Щи из свежей капусты со сметаной | C160: 200 | D160: 4.7 | E160: 5.6 | F160: 5.7 | G160: 92.2 | H160: 0.02 | I160: 0.03 | J160: 104.95 | K160: 0 | L160: 10.76 | M160: 98.52 | N160: 184 | O160: 37.48 | P160: 13.13 | Q160: 30.97 | R160: 0.48 | S160: 15.25 | T160: 0.34 | U160: 14.76
A161: 54-1г-2020 | B161: Макароны отварные | C161: 130 | D161: 4.6 | E161: 4.3 | F161: 28.4 | G161: 170.6 | H161: 0.05 | I161: 0.02 | J161: 15.91 | K161: 0.08 | L161: 0 | M161: 129.16 | N161: 46.62 | O161: 91.72 | P161: 6.24 | Q161: 35.28 | R161: 0.64 | S161: 18 | T161: 0.05 | U161: 10.33
A162: №272 | B162: Биточек рубленный из говядины с соусом | C162: 50/30 | D162: 9.3 | E162: 7.1 | F162: 11.8 | G162: 148.6 | H162: 0 | I162: 0 | J162: 0.1 | K162: 0 | L162: 1.4 | M162: 0 | N162: 0 | O162: 14.7 | P162: 18.9 | Q162: 97 | R162: 1.7 | S162: 0 | T162: 0 | U162: 0
A163: 54-33хн-2020 | B163: Напиток апельсиновый | C163: 150 | D163: 0.1 | E163: 0 | F163: 6 | G163: 24.8 | H163: 0 | I163: 0 | J163: 0.79 | K163: 0 | L163: 3.96 | M163: 1.67 | N163: 27.11 | O163: 55.85 | P163: 1.87 | Q163: 3.3 | R163: 0.06 | S163: 0.33 | T163: 0.07 | U163: 2.81
A164: Пром. | B164: Хлеб ржаной | C164: 20 | D164: 1.3 | E164: 0.2 | F164: 6.7 | G164: 34.2 | H164: 0.04 | I164: 0.02 | J164: 0 | K164: 0 | L164: 0 | M164: 122 | N164: 49 | O164: 7 | P164: 9.4 | Q164: 31.6 | R164: 0.78 | S164: 0 | T164: 6.18 | U164: 0
B165: Итого за Обед | C165: 630 | D165: =SUM(D159:D164) -> 20.46 | E165: 22.29 | F165: 62.17 | G165: 532.4 | H165: 0.12 | I165: 0.09 | J165: 488.2 | K165: 0.08 | L165: 18.12 | M165: 408.35 | N165: 392.73 | O165: 216.75 | P165: 60.54 | Q165: 214.15 | R165: 4.16 | S165: 42.08 | T165: 6.64 | U165: 45.88
B168: Итого за день | C168: =C165+C157+C154 -> 1080 | D168: 30.36 | E168: 32.69 | F168: 117.77 | G168: 888.4 | H168: 0.347 | I168: 0.268 | J168: 524.49 | K168: 0.2 | L168: 19.41 | M168: 813.77 | N168: 774.02 | O168: 417.32 | P168: 128.81 | Q168: 450.77 | R168: 7.708 | S168: 88.85 | T168: 20.95 | U168: 104.83
A170: 7 день, 2 неделя
A171: № рецептуры | B171: Название блюда | C171: Масса | D171: Белки | E171: Жиры | F171: Углеводы | G171: Энергетическая ценность | H171: B1 | I171: B2 | J171: A | K171: D | L171: C | M171: Na | N171: K | O171: Ca | P171: Mg | Q171: P | R171: Fe | S171: I | T171: Se | U171: F
C172: г | D172: г | E172: г | F172: г | G172: ккал | H172: мг | I172: мг | J172: мкг рет.экв | K172: мкг | L172: мг | M172: мг | N172: мг | O172: мг | P172: мг | Q172: мг | R172: мг | S172: мкг | T172: мкг | U172: мкг
B173: Понедельник, 2 неделя
B174: Завтрак | C174: 1-7
A175: 54-3г-2020 | B175: Макароны отварные с сыром | C175: 180 | D175: 9.5 | E175: 8.2 | F175: 34.4 | G175: 249.3 | H175: 0.07 | I175: 0.06 | J175: 40.39 | K175: 0.23 | L175: 0.05 | M175: 289.07 | N175: 68.97 | O175: 187.54 | P175: 13.05 | Q175: 120.39 | R175: 0.92 | S175: 24.8 | T175: 2.34 | U175: 12.44
A176: 54-21гн-2020 | B176: Какао с молоком | C176: 150 | D176: 2.6 | E176: 1.9 | F176: 8.3 | G176: 60.8 | H176: 0.02 | I176: 0.09 | J176: 9.94 | K176: 0 | L176: 0.39 | M176: 28.76 | N176: 119.2 | O176: 107.24 | P176: 17.45 | Q176: 71.55 | R176: 0.51 | S176: 6.75 | T176: 1.32 | U176: 20.51
A177: Пром. | B177: Батон простой | C177: 20 | D177: 1.6 | E177: 0.2 | F177: 9.8 | G177: 47.5 | H177: 0.03 | I177: 0.01 | J177: 0 | K177: 0 | L177: 0 | M177: 88.6 | N177: 27.2 | O177: 4.6 | P177: 6.8 | Q177: 17.8 | R177: 0.4 | S177: 0.64 | T177: 1.2 | U177: 2.9
B178: Итого за Завтрак | C178: =SUM(C175:C177) -> 350 | D178: 13.7 | E178: 10.3 | F178: 52.5 | G178: 357.6 | H178: 0.12 | I178: 0.16 | J178: 50.33 | K178: 0.23 | L178: 0.44 | M178: 406.43 | N178: 215.37 | O178: 299.38 | P178: 37.3 | Q178: 209.74 | R178: 1.83 | S178: 32.19 | T178: 4.86 | U178: 35.85
B179: Второй завтрак
A180: Пром. | B180: Сок яблочный | C180: 100 | D180: 0.5 | E180: 0.1 | F180: 10.1 | G180: 43.3 | H180: 0.007 | I180: 0.008 | J180: 0 | K180: 0 | L180: 0.8 | M180: 4.56 | N180: 99.6 | O180: 6.16 | P180: 3.48 | Q180: 6.09 | R180: 1.218 | S180: 0 | T180: 0 | U180: 0
B181: Итого за Второй завтрак | C181: =C180 -> 100 | D181: =D180 -> 0.5 | E181: 0.1 | F181: 10.1 | G181: 43.3 | H181: 0.007 | I181: 0.008 | J181: 0 | K181: 0 | L181: 0.8 | M181: 4.56 | N181: 99.6 | O181: 6.16 | P181: 3.48 | Q181: 6.09 | R181: 1.218 | S181: 0 | T181: 0 | U181: 0
B182: Обед
A183: 54-13з-2020 | B183: Салат из свеклы отварной с растительным маслом | C183: 50 | D183: 0.67 | E183: 2.24 | F183: 3.8 | G183: 38.1 | H183: 0.01 | I183: 0.02 | J183: 0.57 | K183: 0 | L183: 2 | M183: 66 | N183: 114 | O183: 16 | P183: 9 | Q183: 18 | R183: 0.6 | S183: 10 | T183: 0.3 | U183: 9.5
A184: 54-3с-2020 | B184: Рассольник Ленинградский | C184: 200 | D184: 4.8 | E184: 5.8 | F184: 13.6 | G184: 125.5 | H184: 0.06 | I184: 0.05 | J184: 103.93 | K184: 0 | L184: 5.54 | M184: 196.79 | N184: 334.95 | O184: 21.08 | P184: 19.71 | Q184: 51.39 | R184: 0.71 | S184: 16.6 | T184: 0.75 | U184: 28.28
A185: 54-27м-2020 | B185: Рагу из курицы | C185: 110/40 | D185: 15.7 | E185: 5.3 | F185: 13.1 | G185: 163 | H185: 0.1 | I185: 0.08 | J185: 194.76 | K185: 0 | L185: 8.44 | M185: 211.04 | N185: 553.92 | O185: 24.14 | P185: 70.01 | Q185: 144.39 | R185: 1.6 | S185: 32.23 | T185: 12.78 | U185: 117.27
A186: 54-1хн-2020 | B186: Компот из смеси сухофруктов | C186: 150 | D186: 0.4 | E186: 0 | F186: 14.8 | G186: 60.7 | H186: 0 | I186: 0 | J186: 11.25 | K186: 0 | L186: 0.02 | M186: 0.04 | N186: 0.13 | O186: 81.06 | P186: 1.58 | Q186: 3.23 | R186: 0.06 | S186: 0 | T186: 0 | U186: 0
A187: Пром. | B187: Хлеб пшеничный | C187: 20 | D187: 1.5 | E187: 0.2 | F187: 9.8 | G187: 46.9 | H187: 0.02 | I187: 0.01 | J187: 0 | K187: 0 | L187: 0 | M187: 99.8 | N187: 18.6 | O187: 4 | P187: 2.8 | Q187: 13 | R187: 0.22 | S187: 0.64 | T187: 1.2 | U187: 2.9
A188: Пром. | B188: Хлеб ржаной | C188: 20 | D188: 1.3 | E188: 0.2 | F188: 6.7 | G188: 34.2 | H188: 0.04 | I188: 0.02 | J188: 0 | K188: 0 | L188: 0 | M188: 122 | N188: 49 | O188: 7 | P188: 9.4 | Q188: 31.6 | R188: 0.78 | S188: 0 | T188: 6.18 | U188: 0
B189: Итого за Обед | C189: 590 | D189: =SUM(D183:D188) -> 24.37 | E189: 13.74 | F189: 61.8 | G189: 468.4 | H189: 0.23 | I189: 0.18 | J189: 310.51 | K189: 0 | L189: 16 | M189: 695.67 | N189: 1070.6 | O189: 153.28 | P189: 112.5 | Q189: 261.61 | R189: 3.97 | S189: 59.47 | T189: 21.21 | U189: 157.95
B190: Полдник
A191: 54-2гн-2020 | B191: Чай с сахаром | C191: 150 | D191: 0.1 | E191: 0 | F191: 4.8 | G191: 19.6 | H191: 0 | I191: 0 | J191: 0.11 | K191: 0 | L191: 0.02 | M191: 0.27 | N191: 7.85 | O191: 47.93 | P191: 1.44 | Q191: 2.69 | R191: 0.28 | S191: 0 | T191: 0 | U191: 0
A192: 54-10в-2020 | B192: Булочка ванильная | C192: 50 | D192: 3.9 | E192: 3.4 | F192: 25.4 | G192: 147.4 | H192: 0.05 | I192: 0.03 | J192: 15.93 | K192: 0.12 | L192: 0 | M192: 200.57 | N192: 42.12 | O192: 14.69 | P192: 5.43 | Q192: 34.11 | R192: 0.47 | S192: 27.8 | T192: 2.63 | U192: 9.19
B193: Итого за Полдник | C193: =SUM(C191:C192) -> 200 | D193: 4 | E193: 3.4 | F193: 30.2 | G193: 167 | H193: 0.05 | I193: 0.03 | J193: 16.04 | K193: 0.12 | L193: 0.02 | M193: 200.84 | N193: 49.97 | O193: 62.62 | P193: 6.87 | Q193: 36.8 | R193: 0.75 | S193: 27.8 | T193: 2.63 | U193: 9.19
B194: Итого за день | C194: =C178+C181+C189+C193 -> 1240 | D194: 42.57 | E194: 27.54 | F194: 154.6 | G194: 1036.3 | H194: 0.407 | I194: 0.378 | J194: 376.88 | K194: 0.35 | L194: 17.26 | M194: 1307.5 | N194: 1435.54 | O194: 521.44 | P194: 160.15 | Q194: 514.24 | R194: 7.768 | S194: 119.46 | T194: 28.7 | U194: 202.99
A196: 8 день, 2 неделя
A197: № рецептуры | B197: Название блюда | C197: Масса | D197: Белки | E197: Жиры | F197: Углеводы | G197: Энергетическая ценность | H197: B1 | I197: B2 | J197: A | K197: D | L197: C | M197: Na | N197: K | O197: Ca | P197: Mg | Q197: P | R197: Fe | S197: I | T197: Se | U197: F
C198: г | D198: г | E198: г | F198: г | G198: ккал | H198: мг | I198: мг | J198: мкг рет.экв | K198: мкг | L198: мг | M198: мг | N198: мг | O198: мг | P198: мг | Q198: мг | R198: мг | S198: мкг | T198: мкг | U198: мкг
B199: Вторник, 2 неделя
B200: Завтрак | C200: 1-7
A201: 54-1т-2020 | B201: Запеканка из творога | C201: 150 | D201: 29.66 | E201: 12.58 | F201: 21.65 | G201: 301.2 | H201: 0.06 | I201: 0.3 | J201: 51.11 | K201: 0.16 | L201: 0 | M201: 181 | N201: 159 | O201: 223 | P201: 32 | Q201: 291 | R201: 0.8 | S201: 28.82 | T201: 39 | U201: 49.63
A202: Пром. | B202: Молоко сгущенное с сахаром | C202: 20 | D202: 1.44 | E202: 1.7 | F202: 11.1 | G202: 65.5 | H202: 0.01 | I202: 0.06 | J202: 5.64 | K202: 0 | L202: 0 | M202: 20 | N202: 61 | O202: 54 | P202: 6 | Q202: 38 | R202: 0 | S202: 1.4 | T202: 0.5 | U202: 7
A203: 54-4гн-2020 | B203: Чай с молоком и сахаром | C203: 150 | D203: 1.1 | E203: 0.8 | F203: 6.4 | G203: 37.7 | H203: 0.01 | I203: 0.05 | J203: 5.06 | K203: 0 | L203: 0.21 | M203: 14.52 | N203: 53.29 | O203: 75.98 | P203: 6 | Q203: 32.05 | R203: 0.31 | S203: 3.38 | T203: 0.66 | U203: 7.5
A204: Пром. | B204: Батон простой | C204: 20 | D204: 1.6 | E204: 0.2 | F204: 9.8 | G204: 47.5 | H204: 0.03 | I204: 0.01 | J204: 0 | K204: 0 | L204: 0 | M204: 88.6 | N204: 27.2 | O204: 4.6 | P204: 6.8 | Q204: 17.8 | R204: 0.4 | S204: 0.64 | T204: 1.2 | U204: 2.9
B205: Итого за Завтрак | C205: =SUM(C201:C204) -> 340 | D205: 33.8 | E205: 15.28 | F205: 48.95 | G205: 451.9 | H205: 0.11 | I205: 0.42 | J205: 61.81 | K205: 0.16 | L205: 0.21 | M205: 304.12 | N205: 300.49 | O205: 357.58 | P205: 50.8 | Q205: 378.85 | R205: 1.51 | S205: 34.24 | T205: 41.36 | U205: 67.03
B206: Второй завтрак
A207: Пром. | B207: Молоко 2.5% | C207: 100 | D207: 2.9 | E207: 2.5 | F207: 4.8 | G207: 53.3 | H207: 0.029 | I207: 0.12 | J207: 13.2 | K207: 0 | L207: 0.52 | M207: 38 | N207: 121.18 | O207: 105.6 | P207: 12.18 | Q207: 78.3 | R207: 0.087 | S207: 9 | T207: 1.76 | U207: 20
B208: Итого за Второй завтрак | C208: =C207 -> 100 | D208: =D207 -> 2.9 | E208: 2.5 | F208: 4.8 | G208: 53.3 | H208: 0.029 | I208: 0.12 | J208: 13.2 | K208: 0 | L208: 0.52 | M208: 38 | N208: 121.18 | O208: 105.6 | P208: 12.18 | Q208: 78.3 | R208: 0.087 | S208: 9 | T208: 1.76 | U208: 20
B209: Обед
A210: 54-9з-2020 | B210: Салат из белокочанной капусты с морковью и яблоками и растительным маслом | C210: 50 | D210: 0.68 | E210: 5.08 | F210: 3.01 | G210: 60.5 | H210: 0.01 | I210: 0.02 | J210: 120.81 | K210: 0 | L210: 5 | M210: 56 | N210: 111 | O210: 17 | P210: 8 | Q210: 14 | R210: 0.4 | S210: 8.23 | T210: 0.1 | U210: 9.15
A211: 54-6с-2020 | B211: Суп картофельный с клецками | C211: 200 | D211: 4.6 | E211: 3.3 | F211: 11.4 | G211: 93.6 | H211: 0.05 | I211: 0.04 | J211: 101.43 | K211: 0.05 | L211: 3.69 | M211: 58.01 | N211: 222.12 | O211: 13.28 | P211: 12.74 | Q211: 35.97 | R211: 0.54 | S211: 10.28 | T211: 0.94 | U211: 21.22
A212: 54-11м-2020 | B212: Плов из говядины | C212: 120/30 | D212: 11.5 | E212: 11.1 | F212: 29 | G212: 261.6 | H212: 0.05 | I212: 0.09 | J212: 196.2 | K212: 0.08 | L212: 0.59 | M212: 207.54 | N212: 202.26 | O212: 87.76 | P212: 33 | Q212: 145.5 | R212: 1.66 | S212: 29.04 | T212: 5.52 | U212: 61.67
... 120 more rows
